[Event "33rd Pula Open 2019"]
[Site "Pula"]
[Date "2019.06.29"]
[Round "9.9"]
[White "Medak, Bojan"]
[Black "Jelen, Igor"]
[Result "1/2-1/2"]
[ECO "A05"]
[WhiteElo "2342"]
[BlackElo "2353"]
[Annotator "NA"]
[PlyCount "79"]
[EventDate "2019.06.22"]
[EventType "swiss"]
[EventCountry "CRO"]
[SourceTitle "playchess.com"]
[Source "ChessBase"]
[SourceQuality "1"]
[TimeControl "5400+30"]

1. c4 {[%emt 0:00:30]} Nf6 {[%emt 0:03:30]} 2. Nf3 {[%emt 0:00:30]} g6 {[%emt 0:00:30]} 3. b3 {[%emt 0:00:30]} Bg7 {[%emt 0:00:00]} 4. Bb2 {[%emt 0:00:30]} O-O {[%emt 0:00:00]} 5. g3 {[%emt 0:00:30]} c5 {[%emt 0:02:30]} 6. Bg2 {[%emt 0:00:30]} Nc6 {[%emt 0:00:30]} 7. O-O {[%emt 0:02:30]} d5 {[%emt 0:06:30]} 8. cxd5 {[%emt 0:00:30]} Nxd5 {[%emt 0:00:30]} 9. Bxg7 {[%emt 0:00:30]} Kxg7 {[%emt 0:00:00]} 10. d4 {[%emt 0:00:30]} cxd4 {[%emt 0:01:00]} 11. Nxd4 {[%emt 0:00:30]} Ndb4 {[%emt 0:00:30]} 12. Nxc6 {[%emt 0:03:30]} Nxc6 {[%emt 0:01:30]} 13. Nc3 {[%emt 0:03:30]} Qa5 {[%emt 0:11:30]} 14. Bxc6 {[%emt 0:11:30]} Qxc3 {[%emt 0:01:30]} 15. Bg2 {[%emt 0:04:30]} Rb8 {[%emt 0:22:30]} 16. Rc1 {[%emt 0:09:30]} Qe5 {[%emt 0:00:30]} 17. Qc2 {[%emt 0:12:30]} Rd8 {[%emt 0:03:30]} 18. Qc7 {[%emt 0:03:30]} Qxc7 {[%emt 0:00:00]} 19. Rxc7 {[%emt 0:00:00]} Rd7 {[%emt 0:03:00]} 20. Rfc1 {[%emt 0:05:00]} Rxc7 {[%emt 0:00:00]} 21. Rxc7 {[%emt 0:00:30]} Kf8 {[%emt 0:00:00]} 22. b4 {[%emt 0:13:30]} Ke8 {[%emt 0:01:30]} 23. Bd5 {[%emt 0:00:30]} Kd8 {[%emt 0:04:30]} 24. Rc3 {[%emt 0:00:00]} e6 {[%emt 0:02:30]} 25. Bb3 {[%emt 0:05:00]} h5 {[%emt 0:01:30]} 26. Ba4 {[%emt 0:01:30]} Bd7 {[%emt 0:04:30]} 27. Rd3 {[%emt 0:02:01]} b5 {[%emt 0:00:30]} 28. Bb3 {[%emt 0:00:06]} Rc8 {[%emt 0:08:30]} 29. f4 {[%emt 0:04:38]} Rc1+ {[%emt 0:03:46]} 30. Kf2 {[%emt 0:00:06]} Kc7 {[%emt 0:00:57]} 31. Ke3 {[%emt 0:00:25]} Rh1 {[%emt 0:00:59]} 32. h4 {[%emt 0:00:32]} Bc6 {[%emt 0:01:46]} 33. Kd4 {[%emt 0:06:14]} Kd6 {[%emt 0:00:30]} 34. Bc2 {[%emt 0:01:18]} Rh2 {[%emt 0:07:28]} 35. Ke3+ {[%emt 0:01:34]} Kc7 {[%emt 0:01:05]} 36. Rc3 {[%emt 0:00:12]} Kb6 {[%emt 0:01:24]} 37. Kd2 {[%emt 0:00:59]} a6 {[%emt 0:02:04]} 38. a3 {[%emt 0:02:09]} Kb7 {[%emt 0:01:07]} 39. Ke3 {[%emt 0:04:08]} Bd5 {[%emt 0:00:31]} 40. Bb3 {[%emt 0:01:15]} 1/2-1/2

[Event "33rd Pula Open 2019"]
[Site "Pula"]
[Date "2019.06.29"]
[Round "9.10"]
[White "Maier, Christian"]
[Black "Grishchenko, Sergey"]
[Result "1/2-1/2"]
[ECO "A35"]
[WhiteElo "2299"]
[BlackElo "2411"]
[Annotator "NA"]
[PlyCount "114"]
[EventDate "2019.06.22"]
[EventType "swiss"]
[EventCountry "CRO"]
[SourceTitle "playchess.com"]
[Source "ChessBase"]
[SourceQuality "1"]
[TimeControl "5400+30"]

1. d4 {[%emt 0:01:30]} Nf6 {[%emt 0:02:30]} 2. Nf3 {[%emt 0:00:30]} c5 {[%emt 0:02:30]} 3. e3 {[%emt 0:00:30]} d5 {[%emt 0:02:30]} 4. c4 {[%emt 0:00:30]} cxd4 {[%emt 0:03:30]} 5. exd4 {[%emt 0:00:30]} g6 {[%emt 0:00:30]} 6. Nc3 {[%emt 0:01:30]} Bg7 {[%emt 0:00:30]} 7. cxd5 {[%emt 0:01:30]} Nxd5 {[%emt 0:12:30]} 8. Qb3 {[%emt 0:03:30]} Nxc3 {[%emt 0:17:30]} 9. bxc3 {[%emt 0:00:30]} O-O {[%emt 0:00:30]} 10. Be2 {[%emt 0:00:30]} Nc6 {[%emt 0:00:00]} 11. O-O {[%emt 0:00:30]} Na5 {[%emt 0:10:00] A35: Symmetrical English: 2 Nc3 Nc6 3 Nf3} (11... b6 12. Ba3 Be6 13. c4 Nxd4 14. Nxd4 Qxd4 15. Bxe7 Rfe8 16. Rad1 Qe5 17. Bf3 Rac8 18. Rfe1 Qc7 19. Bd6 Qxc4 20. Qxc4 Bxc4 {0-1 (39) Dzagnidze,N (2510)-Krush,I (2422) Hengshui 2019}) 12. Qb4 {[%emt 0:06:30]} Be6 {[%emt 0:03:30]} 13. Bg5 {[%emt 0:07:30]} f6 $146 {[%emt 0:09:30]} ({Predecessor:} 13... Re8 14. Bb5 Nc6 15. Bxc6 bxc6 16. Bf4 Bd5 17. Nd2 e5 18. dxe5 Bxe5 19. Bxe5 Rxe5 {0-1 (46) Tuovinen,J-Vetemaa,J (2325) Vantaa 1998}) 14. Be3 {[%emt 0:02:30]} Rc8 {[%emt 0:02:30]} 15. Nd2 {[%emt 0:11:30]} Qc7 {[%emt 0:05:30]} 16. c4 {[%emt 0:09:30]} f5 {[%emt 0:05:15]} 17. d5 {[%emt 0:00:30]} Bf7 {[%emt 0:00:30]} 18. Rac1 {[%emt 0:01:30]} f4 {[%emt 0:05:50]} 19. d6 {[%emt 0:03:30]} Qxd6 {[%emt 0:04:39]} 20. Qxd6 {[%emt 0:02:30]} exd6 {[%emt 0:01:15]} 21. Bxf4 {[%emt 0:00:30]} d5 {[%emt 0:00:28]} 22. c5 {[%emt 0:01:30]} Rfe8 {[%emt 0:05:29]} 23. Bb5 {[%emt 0:00:30]} Nc6 {[%emt 0:00:36]} 24. Rfd1 {[%emt 0:02:30]} Bf6 {[%emt 0:02:23]} 25. Ba4 {[%emt 0:00:30]} Red8 {[%emt 0:00:30]} 26. Nf3 {[%emt 0:01:30]} d4 {[%emt 0:00:18]} 27. a3 {[%emt 0:04:30]} d3 {[%emt 0:00:25]} 28. Bd6 {[%emt 0:00:30]} Nd4 {[%emt 0:00:52]} 29. Nxd4 {[%emt 0:02:30]} Bxd4 {[%emt 0:00:03]} 30. Be7 $11 {[%emt 0:00:30]} Rd5 {[%emt 0:00:06]} 31. g4 {[%emt 0:06:30]} Bb2 {[%emt 0:01:58]} 32. Rb1 {[%emt 0:00:30]} Bxa3 {[%emt 0:00:05]} 33. Rxb7 {[%emt 0:00:30]} Bxc5 {[%emt 0:00:14]} 34. Bb3 {[%emt 0:00:30]} d2 {[%emt 0:01:42]} 35. Bxc5 {[%emt 0:05:30]} Rcxc5 {[%emt 0:00:10]} 36. Rxf7 {[%emt 0:00:30]} Kxf7 {[%emt 0:00:13]} 37. Rxd2 {[%emt 0:00:00]} Ke6 {[%emt 0:00:07]} 38. Ra2 {[%emt 0:00:00]} a5 {[%emt 0:00:09]} 39. Kg2 {[%emt 0:00:30]} g5 {[%emt 0:01:40]} 40. Re2+ {[%emt 0:00:30]} Kd6 {[%emt 0:00:32]} 41. Bxd5 {[%emt 0:00:00]} Rxd5 {[%emt 0:00:06]} 42. Re8 {[%emt 0:00:00]} Kc5 {[%emt 0:00:13]} 43. h4 {[%emt 0:00:30]} gxh4 {[%emt 0:00:19]} 44. Kh3 {[%emt 0:00:30]} a4 {[%emt 0:00:25]} 45. f4 {[%emt 0:00:30]} a3 {[%emt 0:00:28]} 46. f5 {[%emt 0:00:30]} Kb4 {[%emt 0:00:31]} 47. f6 {[%emt 0:01:30]} Rd3+ {[%emt 0:01:28]} 48. Kxh4 {[%emt 0:00:30]} Rf3 {[%emt 0:00:26]} 49. g5 {[%emt 0:01:30]} a2 {[%emt 0:00:38]} 50. Ra8 {[%emt 0:00:00]} Kb3 {[%emt 0:00:21]} 51. Kh5 {[%emt 0:00:00]} Rh3+ {[%emt 0:00:58]} 52. Kg4 {[%emt 0:00:30]} Rh1 {[%emt 0:00:04]} 53. Kf5 {[%emt 0:00:30]} Rf1+ {[%emt 0:00:37]} 54. Ke6 {[%emt 0:00:00]} Re1+ {[%emt 0:00:41]} 55. Kf5 {[%emt 0:02:00]} Rf1+ {[%emt 0:00:35]} 56. Ke6 {[%emt 0:00:00]} Re1+ {[%emt 0:00:03]} 57. Kf5 {[%emt 0:00:00]} Rf1+ {[%emt 0:01:25]} 1/2-1/2

[Event "33rd Pula Open 2019"]
[Site "Pula"]
[Date "2019.06.29"]
[Round "9.11"]
[White "Petran, Peter"]
[Black "Berezjuk, Sergej"]
[Result "1/2-1/2"]
[ECO "B25"]
[WhiteElo "2246"]
[BlackElo "2411"]
[Annotator "NA"]
[PlyCount "120"]
[EventDate "2019.06.22"]
[EventType "swiss"]
[EventCountry "CRO"]
[SourceTitle "playchess.com"]
[Source "ChessBase"]
[SourceQuality "1"]
[TimeControl "5400+30"]

1. Nf3 {[%emt 0:00:30]} c5 {[%emt 0:00:30]} 2. g3 {[%emt 0:00:00]} Nc6 {[%emt 0:00:00]} 3. Bg2 {[%emt 0:00:00]} e5 {[%emt 0:00:00]} 4. e4 {[%emt 0:00:30]} g6 {[%emt 0:00:30]} 5. Nc3 {[%emt 0:00:30]} Bg7 {[%emt 0:00:00]} 6. d3 {[%emt 0:00:30]} Nge7 {[%emt 0:00:00]} 7. O-O {[%emt 0:02:30]} d6 {[%emt 0:01:30]} 8. Nd2 {[%emt 0:00:30]} O-O {[%emt 0:00:30]} 9. Nc4 {[%emt 0:00:30]} Be6 {[%emt 0:07:30]} 10. Nd5 {[%emt 0:01:30]} h6 {[%emt 0:13:30] B25: Closed Sicilian: 3 g3, lines without early Be3} (10... Kh8 11. c3 Qd7 12. a4 f5 13. a5 Bg8 14. Nxe7 Nxe7 15. Qa4 Rad8 16. Bg5 Bf6 17. Bxf6+ Rxf6 18. exf5 gxf5 {1-0 (56) Grischuk,A (2767)-Gelfand,B (2695) Moscow 2018}) 11. a4 {[%emt 0:00:30]} Rb8 {[%emt 0:03:30]} 12. c3 {[%emt 0:00:30]} f5 {[%emt 0:01:30]} 13. f4 {[%emt 0:02:30]} Qd7 $146 {[%emt 0:02:30]} ({Predecessor:} 13... Kh7 14. Bd2 Qd7 15. a5 Rbe8 16. Qa4 Qd8 17. Qb5 Bc8 18. Nxe7 Nxe7 19. fxe5 dxe5 20. Rad1 f4 21. gxf4 {½-½ (21) Vesselovsky,S (2401)-Kuchynka,L (2203) Czechia 2008}) 14. Be3 {[%emt 0:10:30]} b6 {[%emt 0:03:30]} 15. Qd2 {[%emt 0:04:30]} Kh7 {[%emt 0:00:00]} 16. Rf2 {[%emt 0:01:30]} Rbd8 {[%emt 0:09:00]} 17. Qc2 {[%emt 0:01:30]} Bg8 {[%emt 0:03:30]} 18. Nxe7 {[%emt 0:16:30]} Nxe7 {[%emt 0:03:30]} 19. b3 {[%emt 0:05:30]} exf4 {[%emt 0:02:30]} 20. Bxf4 {[%emt 0:11:30]} fxe4 {[%emt 0:16:30]} 21. dxe4 {[%emt 0:00:30]} Bxc4 {[%emt 0:00:30]} 22. bxc4 {[%emt 0:00:30]} Qe6 {[%emt 0:01:30]} 23. Qd3 {[%emt 0:02:30]} g5 {[%emt 0:05:30]} 24. e5+ {[%emt 0:04:30]} Ng6 {[%emt 0:01:30]} 25. Bd5 {[%emt 0:01:30]} dxe5 {[%emt 0:00:30]} 26. Be3 {[%emt 0:01:30]} e4 {[%emt 0:02:30]} 27. Qc2 {[%emt 0:07:30]} Rxf2 {[%emt 0:01:47]} 28. Bxf2 {[%emt 0:00:30]} Qf6 {[%emt 0:01:33]} 29. Bxe4 {[%emt 0:01:30]} Rd6 {[%emt 0:00:00]} 30. Rd1 {[%emt 0:05:07]} Rxd1+ {[%emt 0:01:05]} 31. Qxd1 {[%emt 0:00:22]} Kh8 {[%emt 0:00:11]} 32. a5 $11 {[%emt 0:03:02]} Nf8 {[%emt 0:01:32]} 33. axb6 {[%emt 0:04:29]} axb6 {[%emt 0:00:13]} 34. Be1 {[%emt 0:01:05]} Qe7 {[%emt 0:07:44]} 35. Qd5 {[%emt 0:01:40]} Nd7 {[%emt 0:00:41]} 36. Bd2 {[%emt 0:01:08]} Nf6 {[%emt 0:02:20]} 37. Qa8+ {[%emt 0:00:16]} Bf8 {[%emt 0:01:27]} 38. Bf3 {[%emt 0:01:09]} Kg7 {[%emt 0:00:23]} 39. Qb7 {[%emt 0:01:27]} Qxb7 {[%emt 0:00:42]} 40. Bxb7 {[%emt 0:00:01]} Bd6 {[%emt 0:00:53]} 41. Kg2 {[%emt 0:00:09]} Kg6 {[%emt 0:00:35]} 42. h3 {[%emt 0:01:23]} Nh5 {[%emt 0:02:01]} 43. Be1 {[%emt 0:00:13]} Kf6 {[%emt 0:00:13]} 44. Kf3 {[%emt 0:00:12]} Ke5 {[%emt 0:00:41]} 45. Bd2 {[%emt 0:00:43]} Be7 {[%emt 0:01:15]} 46. g4 {[%emt 0:00:46]} Nf4 {[%emt 0:01:10]} 47. h4 {[%emt 0:00:36]} Ng6 {[%emt 0:01:19]} 48. h5 {[%emt 0:01:49]} Nf4 {[%emt 0:00:14]} 49. Bxf4+ {[%emt 0:01:32]} gxf4 {[%emt 0:00:02]} 50. Be4 {[%emt 0:00:23]} Bh4 {[%emt 0:00:06]} 51. Bb7 {[%emt 0:01:37]} Be1 {[%emt 0:00:24]} 52. Ba6 {[%emt 0:00:19]} Bxc3 {[%emt 0:00:06]} 53. Bb5 {[%emt 0:00:04]} Be1 {[%emt 0:00:13]} 54. Ba6 {[%emt 0:00:04]} Bh4 {[%emt 0:00:07]} 55. Bb5 {[%emt 0:00:03]} Bg5 {[%emt 0:00:33]} 56. Ba6 {[%emt 0:00:03]} Kd4 {[%emt 0:00:21]} 57. Bb5 {[%emt 0:00:06]} Kc3 {[%emt 0:00:05]} 58. Ba6 {[%emt 0:00:05]} Kb4 {[%emt 0:00:23]} 59. Bb5 {[%emt 0:00:07]} Ka5 {[%emt 0:01:34]} 60. Ke4 {[%emt 0:00:06]} Kb4 {[%emt 0:00:41]} 1/2-1/2

[Event "33rd Pula Open 2019"]
[Site "Pula"]
[Date "2019.06.29"]
[Round "9.12"]
[White "Bratkovic, Sham"]
[Black "Franic, Milan"]
[Result "0-1"]
[ECO "E59"]
[WhiteElo "2237"]
[BlackElo "2379"]
[Annotator "NA"]
[PlyCount "106"]
[EventDate "2019.06.22"]
[EventType "swiss"]
[EventCountry "CRO"]
[SourceTitle "playchess.com"]
[Source "ChessBase"]
[SourceQuality "1"]
[TimeControl "5400+30"]

1. d4 {[%emt 0:01:30]} Nf6 {[%emt 0:01:30]} 2. c4 {[%emt 0:01:30]} e6 {[%emt 0:00:30]} 3. Nc3 {[%emt 0:01:30]} Bb4 {[%emt 0:00:00]} 4. e3 {[%emt 0:00:30]} O-O {[%emt 0:01:00]} 5. Bd3 {[%emt 0:00:30]} c5 {[%emt 0:03:30]} 6. Nf3 {[%emt 0:01:30]} d5 {[%emt 0:07:30]} 7. O-O {[%emt 0:00:30]} Nc6 {[%emt 0:02:30]} 8. a3 {[%emt 0:02:30]} Bxc3 {[%emt 0:00:30]} 9. bxc3 {[%emt 0:00:00]} dxc4 {[%emt 0:04:30]} 10. Bxc4 {[%emt 0:00:00]} Qe7 {[%emt 0:00:00]} 11. a4 {[%emt 0:05:30]} b6 {[%emt 0:04:00]} 12. Ba3 {[%emt 0:09:30]} Bb7 {[%emt 0:04:30]} 13. Qe2 {[%emt 0:03:30]} Rac8 {[%emt 0:08:30]} 14. Ba6 {[%emt 0:05:30]} Bxa6 {[%emt 0:13:30]} 15. Qxa6 {[%emt 0:00:30]} Nb8 {[%emt 0:00:30]} 16. Qb5 {[%emt 0:05:30]} Ne4 {[%emt 0:03:30]} 17. Qd3 {[%emt 0:04:30]} Qb7 {[%emt 0:00:30]} 18. Ne5 {[%emt 0:04:30]} Rfd8 {[%emt 0:01:30]} 19. Rfc1 {[%emt 0:08:30]} f6 {[%emt 0:05:30]} 20. Nc4 {[%emt 0:02:30]} f5 {[%emt 0:02:30]} 21. Qb1 {[%emt 0:11:30]} Qd5 {[%emt 0:04:30]} 22. Ne5 {[%emt 0:01:30]} Nd7 {[%emt 0:02:30]} 23. Nxd7 {[%emt 0:02:30]} Rxd7 {[%emt 0:00:30]} 24. Qb5 {[%emt 0:03:30]} Rdc7 {[%emt 0:07:30]} 25. a5 {[%emt 0:03:30]} cxd4 {[%emt 0:01:35]} 26. Qxd5 {[%emt 0:00:30]} exd5 {[%emt 0:00:25]} 27. axb6 {[%emt 0:00:30]} axb6 {[%emt 0:00:30]} 28. cxd4 {[%emt 0:00:30]} Rc2 {[%emt 0:03:07]} 29. f3 {[%emt 0:01:01]} Nd2 {[%emt 0:00:06]} 30. Rxc2 {[%emt 0:01:49]} Rxc2 {[%emt 0:00:06]} 31. Bd6 {[%emt 0:00:35]} Nc4 {[%emt 0:02:53]} 32. Be5 {[%emt 0:00:37]} g5 {[%emt 0:02:01]} 33. Re1 {[%emt 0:06:51]} Kf7 {[%emt 0:04:18]} 34. h3 {[%emt 0:02:48]} Ke6 {[%emt 0:00:42]} 35. e4 {[%emt 0:01:08]} fxe4 {[%emt 0:02:11]} 36. fxe4 {[%emt 0:00:08]} dxe4 {[%emt 0:00:30]} 37. Rxe4 {[%emt 0:00:10]} b5 {[%emt 0:00:03]} 38. Bg7+ {[%emt 0:02:11]} Kf7 {[%emt 0:02:21]} 39. Bh6 {[%emt 0:00:51]} Kg6 {[%emt 0:00:47]} 40. Re6+ {[%emt 0:00:16]} Kf5 {[%emt 0:00:07]} 41. Rc6 {[%emt 0:00:41]} Ne3 {[%emt 0:00:35]} 42. g4+ {[%emt 0:02:59]} Kf4 {[%emt 0:00:54]} 43. Rxc2 {[%emt 0:00:40]} Nxc2 {[%emt 0:00:03]} 44. d5 {[%emt 0:00:14]} b4 {[%emt 0:03:54]} 45. h4 {[%emt 0:02:41]} b3 {[%emt 0:00:44]} 46. Bxg5+ {[%emt 0:00:10]} Kxg4 {[%emt 0:00:24]} 47. Bf6 {[%emt 0:01:11]} Kf5 {[%emt 0:00:34]} 48. Bc3 {[%emt 0:01:07]} Ne3 {[%emt 0:00:12]} 49. d6 {[%emt 0:00:47]} Ke6 {[%emt 0:00:07]} 50. Bd4 {[%emt 0:00:45]} Kxd6 {[%emt 0:01:12]} 51. Kf2 {[%emt 0:00:05]} Nc4 {[%emt 0:00:21]} 52. Kf3 {[%emt 0:00:05]} Ke6 {[%emt 0:00:14]} 53. Ke4 {[%emt 0:00:32]} b2 {[%emt 0:00:13]} 0-1

[Event "33rd Pula Open 2019"]
[Site "Pula"]
[Date "2019.06.29"]
[Round "9.13"]
[White "Bozinovic, Bogdan"]
[Black "Filipovic, Branko"]
[Result "1/2-1/2"]
[ECO "C01"]
[WhiteElo "2194"]
[BlackElo "2371"]
[Annotator "NA"]
[PlyCount "137"]
[EventDate "2019.06.22"]
[EventType "swiss"]
[EventCountry "CRO"]
[SourceTitle "playchess.com"]
[Source "ChessBase"]
[SourceQuality "1"]
[TimeControl "5400+30"]

1. d4 {[%emt 0:00:30]} e6 {[%emt 0:01:30]} 2. c4 {[%emt 0:01:30]} b6 {[%emt 0:00:30]} 3. e4 {[%emt 0:00:30]} Bb4+ {[%emt 0:00:30]} 4. Bd2 {[%emt 0:00:30]} Bxd2+ {[%emt 0:00:30]} 5. Qxd2 {[%emt 0:00:30]} d5 {[%emt 0:00:00]} 6. cxd5 {[%emt 0:17:30]} exd5 {[%emt 0:00:00]} 7. Bb5+ {[%emt 0:02:30]} c6 {[%emt 0:01:30]} 8. Bd3 {[%emt 0:00:00]} dxe4 {[%emt 0:00:30]} 9. Bxe4 {[%emt 0:00:00]} Nf6 {[%emt 0:02:30]} 10. Bf3 {[%emt 0:00:30]} O-O {[%emt 0:00:30]} 11. Ne2 {[%emt 0:01:30]} Bg4 {[%emt 0:06:30]} 12. Bxg4 {[%emt 0:01:30]} Nxg4 {[%emt 0:00:30]} 13. Nbc3 {[%emt 0:08:30]} Na6 {[%emt 0:02:30]} 14. O-O {[%emt 0:02:30]} Nc7 {[%emt 0:02:30]} 15. Qf4 {[%emt 0:04:30]} Nf6 {[%emt 0:00:00]} 16. Qf3 {[%emt 0:00:30]} Ncd5 {[%emt 0:02:00]} 17. Rac1 {[%emt 0:01:30]} Rc8 {[%emt 0:00:30]} 18. Rfd1 {[%emt 0:01:30]} Qd6 {[%emt 0:01:30]} 19. Nxd5 {[%emt 0:06:30]} Qxd5 {[%emt 0:02:30]} 20. Qa3 {[%emt 0:01:30]} Qd7 {[%emt 0:01:30]} 21. Qf3 {[%emt 0:02:30]} Rfe8 {[%emt 0:10:30]} 22. Nf4 {[%emt 0:05:30]} Qd6 {[%emt 0:03:30]} 23. g3 {[%emt 0:02:30]} h6 {[%emt 0:00:30]} 24. Rc4 {[%emt 0:04:30]} Ne4 {[%emt 0:06:30]} 25. h4 {[%emt 0:03:30]} b5 {[%emt 0:05:30]} 26. Rc2 {[%emt 0:00:30]} Nf6 {[%emt 0:02:30]} 27. d5 {[%emt 0:07:30]} c5 {[%emt 0:01:30]} 28. Rdc1 {[%emt 0:04:24]} Nd7 {[%emt 0:07:30]} 29. Nd3 {[%emt 0:06:09]} c4 {[%emt 0:04:30]} 30. b3 {[%emt 0:00:34]} Nb6 {[%emt 0:01:30]} 31. bxc4 {[%emt 0:00:36]} bxc4 {[%emt 0:02:30]} 32. Nb2 {[%emt 0:03:27]} Qxd5 {[%emt 0:02:30]} 33. Qxd5 {[%emt 0:00:52]} Nxd5 {[%emt 0:00:30]} 34. Rxc4 {[%emt 0:01:07]} Rxc4 {[%emt 0:00:00]} 35. Nxc4 {[%emt 0:00:37]} Rc8 {[%emt 0:01:00]} 36. Rd1 {[%emt 0:01:34]} Nc3 {[%emt 0:00:30]} 37. Nd6 {[%emt 0:02:02]} Rd8 {[%emt 0:00:30]} 38. Rd2 {[%emt 0:00:27]} a6 {[%emt 0:00:30]} 39. Rc2 {[%emt 0:00:35]} Nxa2 {[%emt 0:00:30]} 40. Nxf7 {[%emt 0:00:13]} Kxf7 {[%emt 0:05:30]} 41. Rxa2 {[%emt 0:00:07]} Rd6 {[%emt 0:00:30]} 42. Rb2 {[%emt 0:00:32]} Re6 {[%emt 0:01:30]} 43. Ra2 {[%emt 0:01:46]} Ke7 {[%emt 0:01:30]} 44. Kg2 {[%emt 0:00:38]} Kd7 {[%emt 0:00:30]} 45. g4 {[%emt 0:00:18]} Kc7 {[%emt 0:00:00]} 46. Kg3 {[%emt 0:00:10]} Kb6 {[%emt 0:01:00]} 47. Kf4 {[%emt 0:00:37]} a5 {[%emt 0:00:30]} 48. h5 {[%emt 0:01:31]} Kb5 {[%emt 0:02:35]} 49. Rb2+ {[%emt 0:00:34]} Kc5 {[%emt 0:06:34]} 50. Rb7 {[%emt 0:00:18]} g6 {[%emt 0:00:31]} 51. hxg6 {[%emt 0:00:39]} Rxg6 {[%emt 0:00:01]} 52. Kf5 {[%emt 0:01:03]} Rg5+ {[%emt 0:01:09]} 53. Kf4 {[%emt 0:00:06]} a4 {[%emt 0:01:18]} 54. Rc7+ {[%emt 0:00:46]} Kb6 {[%emt 0:02:56]} 55. Rh7 {[%emt 0:00:15]} Rg6 {[%emt 0:00:01]} 56. Kf5 {[%emt 0:00:17]} Rc6 {[%emt 0:00:29]} 57. f4 {[%emt 0:01:29]} a3 {[%emt 0:01:11]} 58. Re7 {[%emt 0:00:20]} Kb5 {[%emt 0:03:53]} 59. g5 {[%emt 0:00:27]} Rc5+ {[%emt 0:01:26]} 60. Kg4 {[%emt 0:00:34]} hxg5 {[%emt 0:00:50]} 61. fxg5 {[%emt 0:00:21]} Rc4+ {[%emt 0:02:25]} 62. Kf5 {[%emt 0:00:21]} a2 {[%emt 0:01:39]} 63. Re1 {[%emt 0:00:08]} Rc5+ {[%emt 0:00:38]} 64. Kf6 {[%emt 0:00:14]} Rc6+ {[%emt 0:00:02]} 65. Kf7 {[%emt 0:00:14]} Rc7+ {[%emt 0:00:04]} 66. Kf6 {[%emt 0:00:13]} Rc2 {[%emt 0:00:09]} 67. Ra1 {[%emt 0:00:10]} Rf2+ {[%emt 0:00:12]} 68. Ke7 {[%emt 0:00:12]} Rg2 {[%emt 0:00:06]} 69. Kf6 {[%emt 0:00:05]} 1/2-1/2

[Event "33rd Pula Open 2019"]
[Site "Pula"]
[Date "2019.06.29"]
[Round "9.14"]
[White "Bochnicka, Vladimir"]
[Black "Pecnik, Leo"]
[Result "1/2-1/2"]
[ECO "B07"]
[WhiteElo "2169"]
[BlackElo "2334"]
[Annotator "ChessBase"]
[PlyCount "79"]
[EventDate "2019.06.22"]
[EventType "swiss"]
[EventCountry "CRO"]
[SourceTitle "playchess.com"]
[Source "ChessBase"]
[SourceQuality "1"]
[TimeControl "5400+30"]

1. e4 {[%emt 0:00:30]} d6 {[%emt 0:00:30]} 2. d4 {[%emt 0:00:00]} Nf6 {[%emt 0:00:00]} 3. Nc3 {[%emt 0:00:00]} e5 {[%emt 0:00:00]} 4. dxe5 {[%emt 0:03:30]} dxe5 {[%emt 0:00:00]} 5. Qxd8+ {[%emt 0:00:30]} Kxd8 {[%emt 0:00:00]} 6. Nf3 {[%emt 0:00:30]} Bd6 {[%emt 0:00:30]} 7. Bc4 {[%emt 0:03:30]} Be6 {[%emt 0:00:00]} 8. Bxe6 {[%emt 0:00:30]} fxe6 {[%emt 0:00:00]} 9. O-O {[%emt 0:00:00]} Ke7 {[%emt 0:00:30]} 10. Be3 {[%emt 0:00:00]} Nc6 {[%emt 0:00:30]} 11. a3 {[%emt 0:01:30]} h6 {[%emt 0:05:30]} 12. h3 {[%emt 0:01:30]} g5 {[%emt 0:01:30]} 13. g4 {[%emt 0:04:30]} Rag8 {[%emt 0:04:30]} 14. Kg2 {[%emt 0:03:30]} Nh7 {[%emt 0:06:30]} 15. Rad1 {[%emt 0:03:30]} Nf8 {[%emt 0:04:30]} 16. Ne2 {[%emt 0:02:30]} Na5 {[%emt 0:13:30]} 17. Nd2 {[%emt 0:01:30]} c5 {[%emt 0:00:00]} 18. c3 {[%emt 0:08:30]} b5 {[%emt 0:07:00]} 19. b4 {[%emt 0:00:30]} Nb7 {[%emt 0:00:00]} 20. Nb3 {[%emt 0:04:30]} Nd7 {[%emt 0:02:00]} 21. Rd2 {[%emt 0:08:30]} Rc8 {[%emt 0:07:30]} 22. Rfd1 {[%emt 0:08:30]} Nb6 {[%emt 0:06:30]} 23. Rxd6 {[%emt 0:20:30]} Nxd6 {[%emt 0:01:30]} 24. bxc5 {[%emt 0:00:30]} Ndc4 {[%emt 0:02:30]} 25. cxb6 {[%emt 0:00:00]} axb6 {[%emt 0:01:30]} 26. Bc1 {[%emt 0:05:22]} Rcd8 {[%emt 0:02:30]} 27. Nd2 {[%emt 0:02:25]} Rd3 {[%emt 0:06:30]} 28. Nxc4 {[%emt 0:00:40]} Rxd1 {[%emt 0:00:30]} 29. Nxe5 {[%emt 0:00:21]} Rc8 {[%emt 0:00:30]} 30. Be3 {[%emt 0:02:10]} Re1 {[%emt 0:00:00]} 31. Nd4 {[%emt 0:04:40]} Rxe3 {[%emt 0:00:00]} 32. fxe3 {[%emt 0:00:49]} Rxc3 {[%emt 0:00:30]} 33. Kf3 {[%emt 0:10:06]} Kf6 {[%emt 0:04:30]} 34. Nd7+ {[%emt 0:00:42]} Ke7 {[%emt 0:00:00]} 35. Ne5 {[%emt 0:00:13]} Rxa3 {[%emt 0:00:00]} 36. Nxb5 {[%emt 0:00:07]} Ra1 {[%emt 0:00:30]} 37. Nc6+ {[%emt 0:00:21]} Kd7 {[%emt 0:00:30]} 38. Ne5+ {[%emt 0:00:07]} Ke7 {[%emt 0:01:30]} 39. Nc6+ {[%emt 0:00:08]} Kd7 {[%emt 0:00:30]} 40. Ne5+ {[%emt 0:00:58]} 1/2-1/2